fUST/lending_fUST_20250825
["ID","MTS","AMOUNT","RATE_DAILY","PERIOD"]
[381138946,1756068650223,-256.454979,0.00049399,120]
[381138947,1756068650232,-382.279792,0.00049399,120]
[381138948,1756068650242,-256.454979,0.00049399,120]
[381138949,1756068650251,-382.279792,0.00049399,120]
[381138950,1756068650261,-382.279792,0.00049399,120]
[381138951,1756068650270,-151.0,0.00049399,120]
[381138952,1756068650279,-151.0,0.00049399,120]
[381138953,1756068650289,-231.066034,0.00049399,120]
[381138954,1756068650299,-949.174368,0.00049399,120]
[381138955,1756068650308,-949.174368,0.00049399,120]
[381138956,1756068650317,-949.174368,0.00049399,120]
[381138957,1756068650327,-949.174368,0.00049399,120]
[381138958,1756068650336,-151.0,0.00049399,120]
[381138959,1756068650346,-151.0,0.00049399,120]
[381138960,1756068650356,-630.704233,0.00049399,30]
[381138961,1756068650366,-630.704233,0.00049399,30]
[381138962,1756068650376,-630.704233,0.00049399,30]
[381138963,1756068650386,-630.704233,0.00049399,30]
[381138964,1756068650395,-151.0,0.00049399,120]
[381138965,1756068650404,-151.0,0.00049399,120]
[381138966,1756068650414,-151.0,0.00049399,120]
[381138967,1756068650424,-151.0,0.00049399,120]
[381138968,1756068650434,-151.0,0.00049399,120]
[381138969,1756068650444,-151.0,0.00049399,120]
[381138970,1756068650453,-151.0,0.00049399,120]
[381138971,1756068650462,-151.0,0.00049399,120]
[381138972,1756068650471,-255.311303,0.00049399,120]
[381138973,1756068650480,-151.0,0.00049399,120]
[381138974,1756068650490,-3837.69883041,0.000494,61]
[381138975,1756068650500,-73997.75187859,0.000494,120]
[381138976,1756068652203,199.0,0.00026749,20]
[381138977,1756068652641,-500.0,0.00028504,2]
[381138978,1756068652650,-814.75400889,0.00034898,2]
[381138979,1756068652660,-151.0,0.000389,30]
[381138980,1756068652669,-163.167611,0.000389,30]
[381138981,1756068652678,-151.0,0.000389,30]
[381138982,1756068652687,-163.167611,0.000389,30]
[381138983,1756068652697,-163.167611,0.000389,30]
[381138984,1756068652706,-432.309,0.00043828,2]
[381138985,1756068652715,-151.0,0.00049315,120]
[381138986,1756068652725,-163.167611,0.00049315,120]
[381138987,1756068652734,-151.0,0.00049315,120]
[381138988,1756068652743,-163.167611,0.00049315,120]
[381138989,1756068652754,-144.00542819,0.00049315,120]
[381138990,1756068652769,-19.16218281,0.00049315,120]
[381138991,1756068652779,-8006.78965214,0.000494,120]
[381138992,1756068652791,-18265.9612,0.000494,120]
[381138993,1756068652802,-15400.4718199,0.000494,120]
[381138994,1756068652818,-158149.10344845,0.000494,120]
[381138995,1756068687476,280.35614216,0.0002249,2]
[381138996,1756068687524,280.35614216,0.00024216,2]
[381138997,1756068687576,280.35614216,0.00025943,4]
[381138998,1756068687635,280.35614216,0.00027669,8]
[381138999,1756068687807,420.5342134,0.00025943,4]
[381139002,1756068742325,160.0,0.000253,2]
[381139003,1756068742659,260.0,0.00025848,2]
[381139004,1756068782804,156.29,0.00027891,15]
[381139007,1756068868046,309.01356304,0.00020763,2]
[381139008,1756068868115,270.38686782,0.0002249,2]
[381139011,1756068982362,150.07,0.00027891,15]
[381139012,1756069004619,229.52679581,0.00026591,2]
[381139013,1756069037616,2215.48550408,0.00027891,2]
[381139014,1756069084039,13403.40150364,0.0002751,7]
[381139015,1756069155136,169.1776053,0.00027891,2]
[381139016,1756069221290,236.79620352,0.0002249,2]
[381139017,1756069221329,355.19430535,0.00025943,4]
[381139018,1756069221399,236.79620352,0.00024216,2]
[381139019,1756069221452,236.79620352,0.00025943,4]
[381139020,1756069221515,236.79620352,0.00027669,8]
[381139022,1756069393176,289.08339692,0.0002249,2]
[381139023,1756069393224,289.08339692,0.00024216,2]
[381139024,1756069393286,289.08339692,0.00025943,4]
[381139025,1756069393402,289.08339692,0.00027669,8]
[381139026,1756069393520,433.62509545,0.00025943,4]
[381139028,1756069582247,240.0,0.00013699,2]
[381139029,1756069583793,297.660263,0.00013699,2]
[381139030,1756069584078,297.660263,0.00020187,2]
[381139031,1756069584505,297.660263,0.00026676,2]
[381139032,1756069599453,242.20121544,0.0002249,2]
[381139033,1756069599503,242.20121544,0.00024216,2]
[381139034,1756069599549,242.20121544,0.00025943,4]
[381139035,1756069599604,242.20121544,0.00027669,8]
[381139036,1756069600140,363.30182324,0.00025943,4]
[381139039,1756069770840,278.0537208,0.0002249,2]
[381139040,1756069770887,278.0537208,0.00024216,2]
[381139041,1756069770959,278.0537208,0.00025943,4]
[381139042,1756069771045,278.0537208,0.00027669,8]
[381139043,1756069772446,417.08058136,0.00025943,4]
[381139104,1756069835981,-156.29,0.00027991,15]
[381139106,1756069835991,-150.07,0.00027991,15]
[381139108,1756069836000,-156.29,0.00028091,15]
[381139110,1756069836010,-150.07,0.00028091,15]
[381139112,1756069836020,-156.32,0.00028191,15]
[381139114,1756069836029,-150.07,0.00028191,15]
[381139117,1756069836039,-150.07,0.00028291,15]
[381139119,1756069836049,-163.99742638,0.00028881,2]
[381139121,1756069836059,-300.0,0.00029081,20]
[381139123,1756069836068,-278.0537208,0.00029396,11]
[381139125,1756069836077,-756.04349042,0.00029621,2]
[381139127,1756069836087,-1200.0,0.00029867,2]
[381139129,1756069836097,-300.0,0.00029868,2]
[381139131,1756069836107,-300.0,0.00029868,2]
[381139133,1756069836116,-300.0,0.00029868,2]
[381139135,1756069836125,-300.0,0.00029868,2]
[381139137,1756069836134,-300.0,0.00029868,2]
[381139139,1756069836143,-1200.0,0.00029869,2]
[381139141,1756069836153,-163.99742636,0.00030349,2]
[381139143,1756069836162,-4135.41412228,0.0003063,4]
[381139144,1756069836174,-151.58149188,0.00030634,2]
[381139146,1756069836184,-844.67759735,0.00030728,2]
[381139148,1756069836194,-160.0,0.00030728,2]
[381139150,1756069836203,-160.0,0.00030826,2]
[381139152,1756069836213,-215.99145658,0.00030826,2]
[381139154,1756069836222,-232.42214577,0.00030826,2]
[381139156,1756069836231,-376.22310801,0.00030826,2]
[381139158,1756069836241,-160.0,0.00030826,2]
[381139160,1756069836250,-217.07852671,0.00030826,2]
[381139162,1756069836260,-160.0,0.00030826,2]
[381139164,1756069836269,-278.0537208,0.00031123,15]
[381139166,1756069836278,-298.0,0.00031712,2]
[381139168,1756069836288,-11485.0,0.00031795,2]
[381139170,1756069836297,-163.99742636,0.00031816,2]
[381139171,1756069836306,-296.0,0.00031954,2]
[381139174,1756069836316,-296.0,0.00032017,2]
[381139176,1756069836325,-1680.0,0.00032196,3]
[381139178,1756069836335,-487.0,0.00032331,3]
[381139179,1756069836345,-195.0,0.00032541,2]
[381139181,1756069836355,-195.0,0.00032598,2]
[381139183,1756069836366,-195.0,0.00032644,2]
[381139185,1756069836376,-195.0,0.00032726,7]
[381139187,1756069836386,-296.0,0.00032772,2]
[381139189,1756069836396,-296.0,0.00032898,7]
[381139192,1756069836410,-195.0,0.00032914,2]
[381139194,1756069836423,-195.0,0.0003315,2]
[381139196,1756069836433,-297.660263,0.00033165,2]
[381139197,1756069836447,-163.99742636,0.00033284,2]
[381139200,1756069836458,-500.0,0.00033307,7]
[381139202,1756069836467,-0.82891046,0.00033307,7]
[381139412,1756069838490,-363.08054807,0.00033307,7]
[381139414,1756069838500,-500.0,0.00033307,7]
[381139416,1756069838509,-500.0,0.00033307,2]
[381139418,1756069838519,-566.67430939,0.00033307,7]
[381139421,1756069838530,-500.0,0.00033307,7]
[381139423,1756069838541,-628.839,0.00033307,7]
[381139424,1756069838550,-500.0,0.00033307,7]
[381139427,1756069838560,-500.0,0.00033307,2]
[381139429,1756069838570,-500.0,0.00033307,7]
[381139431,1756069838579,-500.0,0.00033307,7]
[381139433,1756069838589,-500.0,0.00033307,7]
[381139435,1756069838598,-500.0,0.00033307,2]
[381139437,1756069838607,-622.31518433,0.00033307,7]
[381139439,1756069838616,-500.0,0.00033307,7]
[381139441,1756069838625,-500.0,0.00033307,7]
[381139443,1756069838634,-500.0,0.00033307,7]
[381139445,1756069838644,-500.0,0.00033307,7]
[381139447,1756069838653,-500.0,0.00033307,7]
[381139449,1756069838663,-500.0,0.00033307,7]
[381139451,1756069838675,-500.0,0.00033307,7]
[381139452,1756069838684,-500.0,0.00033307,7]
[381139454,1756069838693,-587.03376549,0.00033307,2]
[381139456,1756069838702,-500.0,0.00033307,2]
[381139457,1756069838711,-4122.5812085,0.00033308,2]
[381139458,1756069838721,-195.0,0.00033384,7]
[381139459,1756069838731,-296.0,0.0003342,2]
[381139460,1756069838740,-195.0,0.00033456,2]
[381139461,1756069838750,-500.0,0.00033456,2]
[381139462,1756069838759,-195.0,0.00033503,2]
[381139463,1756069838768,-296.0,0.00033546,7]
[381139464,1756069838778,-195.0,0.00033581,2]
[381139465,1756069838787,-506.25103804,0.0003373,2]
[381139466,1756069838796,-195.0,0.00033841,7]
[381139467,1756069838806,-3021.14978773,0.00033866,2]
[381139468,1756069838816,-195.0,0.00033889,2]
[381139469,1756069838826,-195.0,0.00034106,2]
[381139470,1756069838835,-195.0,0.0003417,7]
[381139471,1756069838845,-195.0,0.00034809,2]
[381139472,1756069838855,-195.0,0.00034883,2]
[381139473,1756069838864,-195.0,0.00034915,2]
[381139474,1756069838874,-195.0,0.00035057,7]
[381139475,1756069838884,-500.0,0.0003762,7]
[381139476,1756069838893,-297.660263,0.00039654,2]
[381139477,1756069838902,-500.0,0.00039687,7]
[381139478,1756069838911,-500.0,0.00039756,7]
[381139479,1756069838921,-625.61468546,0.00039906,2]
[381139480,1756069838932,-500.0,0.00040514,30]
[381139481,1756069838941,-500.0,0.00040833,30]
[381139482,1756069838950,-625.61468539,0.00041549,28]
[381139483,1756069838959,-500.0,0.00042259,30]
[381139484,1756069838969,-500.0,0.00042651,30]
[381139485,1756069838978,-625.61468539,0.00043192,28]
[381139486,1756069838987,-625.61468539,0.00044835,28]
[381139487,1756069838997,-500.0,0.00045337,30]
[381139488,1756069839007,-297.660263,0.00046143,2]
[381139489,1756069839015,-500.0,0.00046255,30]
[381139490,1756069839025,-625.61468539,0.00046477,28]
[381139491,1756069839034,-500.0,0.00046479,30]
[381139492,1756069839043,-500.0,0.0004703,30]
[381139493,1756069839053,-500.0,0.00047086,30]
[381139494,1756069839062,-199.0,0.00047397,30]
[381139495,1756069839071,-246.74394084,0.00048082,32]
[381139496,1756069839080,-625.61468539,0.0004812,28]
[381139497,1756069839089,-194.47307488,0.0004863,120]
[381139498,1756069839099,-500.0,0.00048766,60]
[381139499,1756069839109,-400.0,0.000489,120]
[381139500,1756069839119,-200.0,0.000489,5]
[381139501,1756069839128,-400.0,0.000489,3]
[381139502,1756069839138,-18535.01987791,0.0004899,2]
[381139503,1756069839148,-157.0,0.00049,90]
[381139504,1756069839157,-199.0,0.00049115,120]
[381139505,1756069839167,-500.0,0.00049177,30]
[381139506,1756069839178,-505.05826818,0.0004919,2]
[381139507,1756069839188,-1111.86314434,0.000492,120]
[381139508,1756069839197,-199.0,0.00049215,120]
[381139509,1756069839207,-417.15472785,0.00049215,120]
[381139510,1756069839216,-505.05826815,0.00049217,2]
[381139511,1756069839226,-505.05826815,0.00049245,2]
[381139512,1756069839236,-603.51934639,0.00049267,120]
[381139513,1756069839245,-907.74191928,0.00049267,120]
[381139514,1756069839255,-907.74191928,0.00049267,120]
[381139515,1756069839264,-907.74191928,0.00049267,120]
[381139516,1756069839274,-907.74191928,0.00049267,120]
[381139517,1756069839283,-907.74191928,0.00049267,120]
[381139518,1756069839292,-907.74191928,0.00049267,120]
[381139519,1756069839302,-907.74191928,0.00049267,120]
[381139520,1756069839312,-907.74191928,0.00049267,120]
[381139521,1756069839321,-907.74191928,0.00049267,120]
[381139522,1756069839331,-907.74191928,0.00049267,120]
[381139523,1756069839339,-907.74191928,0.00049267,120]
[381139524,1756069839349,-907.74191928,0.00049267,120]
[381139525,1756069839363,-907.74191928,0.00049267,120]
[381139526,1756069839373,-15311.6949758,0.00049268,4]
[381139527,1756069839382,-505.05826815,0.00049272,2]
[381139528,1756069839392,-529.17068775,0.00049276,120]
[381139529,1756069839403,-160.0,0.00049276,120]
[381139530,1756069839412,-12658.71630181,0.00049278,4]
[381139531,1756069839740,199.0,0.00026749,20]
[381139608,1756069846710,-465.33972072,0.00033307,7]
[381139609,1756069846737,-34.66027928,0.00033307,7]
[381139610,1756069846747,-500.0,0.00033307,7]
[381139611,1756069846756,-268.49148621,0.00039806,2]
[381139612,1756069846766,-2652.97867399,0.00049278,4]
[381139613,1756069846776,-20343.86956077,0.00049288,2]
[381139614,1756069846789,-116486.74068203,0.00049288,2]
[381139650,1756069941521,209.5457949,0.0002249,2]
[381139651,1756069941624,209.5457949,0.00027669,8]
[381139652,1756069941873,209.5457949,0.00025943,4]
[381139653,1756069941982,209.5457949,0.00024216,2]
[381139654,1756070113200,264.54879242,0.0002249,2]
[381139655,1756070113349,264.54879242,0.00025943,4]
[381139656,1756070113631,264.54879242,0.00027669,8]
[381139657,1756070113688,264.54879242,0.00024216,2]
[381139658,1756070205748,380.146484,0.00025246,2]
[381139659,1756070206060,264.62750981,0.00025507,2]
[381139660,1756070301891,353.98231764,0.0002249,2]
[381139661,1756070301943,353.98231764,0.00024216,2]
[381139662,1756070301988,353.98231764,0.00025943,4]
[381139663,1756070302033,353.98231764,0.00027669,8]
[381139664,1756070302110,530.97347654,0.00025943,4]
[381139665,1756070476933,295.52511752,0.00020763,2]
[381139666,1756070476988,295.52511752,0.0002249,2]
[381139667,1756070477051,295.52511752,0.00024216,2]
[381139668,1756070618035,263.829691,0.00013699,2]
[381139669,1756070618271,263.829691,0.00020187,2]
[381139670,1756070618490,263.829691,0.00026676,2]
[381139697,1756070884847,1439.58677904,0.00024774,2]
[381139726,1756070924676,1977.954814,0.00022,10]
[381139727,1756070925518,150.999999,0.00030702,120]
[381139728,1756070927273,150.999998,0.00021,2]
[381139735,1756070930178,338.59394338,0.00024,2]
[381139736,1756070931629,400.0,0.0002739,7]
[381139914,1756071031839,-666.0,0.00028991,2]
[381139916,1756071031850,-233.24078416,0.00029016,2]
[381139918,1756071031859,-1200.0,0.00029066,2]
[381139921,1756071031868,-5816.0040118,0.00029067,2]
[381139923,1756071031877,-300.0,0.00029115,2]
[381139925,1756071031887,-220.0,0.00029116,2]
[381139927,1756071031896,-233.24078414,0.00029366,2]
[381139929,1756071031905,-233.24078414,0.00029717,2]
[381139931,1756071031915,-300.0,0.00029819,2]
[381139933,1756071031924,-252.0,0.00029819,2]
[381139935,1756071031934,-300.0,0.00029819,2]
[381139937,1756071031944,-300.0,0.00029819,2]
[381139939,1756071031953,-4118.14818775,0.0002982,2]
[381139941,1756071031963,-417.52468797,0.0003,120]
[381139943,1756071031972,-715.22334226,0.0003,120]
[381139944,1756071031981,-403.18919427,0.0003,10]
[381139946,1756071031991,-202.72230618,0.0003,120]
[381139948,1756071032000,-727.5207651,0.0003,120]
[381139951,1756071032010,-182.90401557,0.0003,120]
[381139953,1756071032019,-242.46439042,0.0003,120]
[381139955,1756071032029,-233.24078414,0.00030067,2]
[381139957,1756071032038,-119.74472194,0.0003013,15]
[381140335,1756071037568,-199.0,0.00030036,120]
[381140336,1756071037578,-735.7827607,0.0003013,15]
[381140337,1756071037588,-284.09789342,0.0003013,2]
[381140338,1756071037598,-736.25852557,0.00030136,120]
[381140339,1756071037608,-975.3121391,0.000302,2]
[381140340,1756071037618,-211.2017087,0.000302,2]
[381140341,1756071037628,-233.24078414,0.00030417,2]
[381140342,1756071037638,-188.00850067,0.00030449,2]
[381140343,1756071037648,-500.0,0.00030517,2]
[381140344,1756071037658,-500.0,0.00030517,2]
[381140345,1756071037668,-500.0,0.00030517,2]
[381140346,1756071037678,-500.0,0.00030517,2]
[381140347,1756071037692,-500.0,0.00030517,2]
[381140348,1756071037702,-500.0,0.00030517,2]
[381140349,1756071037711,-500.0,0.00030517,2]
[381140350,1756071037721,-500.0,0.00030517,2]
[381140351,1756071037731,-500.0,0.00030517,2]
[381140352,1756071037741,-500.0,0.00030517,2]
[381140353,1756071037945,-354.09314281,0.00030517,2]
[381140354,1756071037956,-500.0,0.00030517,2]
[381140355,1756071037966,-346.92390937,0.00030517,2]
[381140356,1756071037975,-287.44819617,0.00030517,2]
[381140357,1756071037985,-500.0,0.00030517,2]
[381140358,1756071037994,-478.20070642,0.00030517,2]
[381140359,1756071038004,-10658.1483416,0.00030518,2]
[381140360,1756071038027,-320.0,0.00030518,2]
[381140361,1756071038039,-30379.16198931,0.00030518,2]
[381140362,1756071038049,-422.46354247,0.00030701,2]
[381140363,1756071038059,-500.0,0.00030701,2]
[381140364,1756071038068,-500.0,0.00030701,2]
[381140365,1756071038078,-500.0,0.00030701,2]
[381140366,1756071038088,-303.80878423,0.00030701,2]
[381140367,1756071038098,-500.0,0.00030701,2]
[381140368,1756071038108,-500.0,0.00030701,2]
[381140369,1756071038117,-500.0,0.00030701,2]
[381140370,1756071038127,-500.0,0.00030701,2]
[381140371,1756071038136,-500.0,0.00030701,2]
[381140372,1756071038146,-4563.29092415,0.00030702,2]
[381140373,1756071038156,-25148.12230562,0.00030702,20]
[381140374,1756071038167,-4385.64262913,0.00030702,20]
[381140375,1756071038217,-7.46772821,0.00030702,20]
[381140376,1756071038244,-2033.52217936,0.00030702,20]
[381140383,1756071039632,-199.0,0.00030036,120]
[381140384,1756071039642,-646.55,0.00030702,20]
[381140386,1756071039697,-45368.311,0.00030702,20]
[381140597,1756071042847,-681.8757257,0.00030702,20]
[381140604,1756071042906,-115809.9314309,0.00030702,20]
[381140939,1756071046415,-7309.66472893,0.00030702,20]
[381140940,1756071046427,-56827.24958992,0.00030702,20]
[381140942,1756071046438,-76345.07880157,0.00030702,20]
[381140944,1756071046455,-1137.225489,0.00030702,20]
[381140946,1756071046466,-678.92998736,0.00030702,20]
[381140948,1756071046477,-302.10002581,0.00030702,20]
[381140950,1756071046515,-17183.45402047,0.00030702,20]
[381141150,1756071049975,199.0,0.00026749,20]
[381141209,1756071407282,381.977979,0.00025778,2]
[381141210,1756071408180,278.62261587,0.00026044,2]
[381141212,1756071529603,365.2333448,0.00020763,2]
[381141213,1756071529658,365.2333448,0.0002249,2]
[381141214,1756071529764,365.2333448,0.00024216,2]
[381141215,1756071529820,273.92500884,0.00025943,4]
[381141216,1756071638215,250.027674,0.00013699,2]
[381141217,1756071638430,250.027674,0.00020187,2]
[381141218,1756071638643,250.027674,0.00026676,2]
[381141222,1756072037975,349.08663896,0.00020763,2]
[381141223,1756072038014,261.81497947,0.00025943,4]
[381141224,1756072038072,349.08663896,0.0002249,2]
[381141225,1756072038123,349.08663896,0.00024216,2]
[381141226,1756072049150,-160.0,0.00029,10]
[381141227,1756072049170,-206.73242546,0.00029106,2]
[381141228,1756072049189,-1200.0,0.00029206,2]
[381141229,1756072049209,-300.0,0.00029206,2]
[381141230,1756072049228,-10000.0,0.00029207,2]
[381141231,1756072049248,-206.73242542,0.00029429,2]
[381141232,1756072049267,-160.474348,0.00029465,2]
[381141233,1756072049286,-1000.0,0.00029518,30]
[381141234,1756072049305,-315.247009,0.00029622,2]
[381141235,1756072049324,-206.73242542,0.00029753,2]
[381141236,1756072049343,-206.73242542,0.00030077,2]
[381141237,1756072049364,-206.73242542,0.000304,2]
[381141238,1756072049384,-6981.71474926,0.00030495,2]
[381141239,1756072049404,-1000.0,0.000305,3]
[381141240,1756072049423,-8605.0,0.000305,120]
[381141241,1756072049441,-302.63687509,0.00030541,26]
[381141242,1756072049460,-302.66710251,0.00030541,26]
[381141243,1756072049480,-1600.0,0.00030593,2]
[381141244,1756072049499,-400.0,0.00030594,2]
[381141245,1756072049517,-300.0,0.00030594,2]
[381141246,1756072049536,-400.0,0.00030594,2]
[381141247,1756072049556,-996.84965033,0.00030595,2]
[381141248,1756072109894,50000.0,0.00030695,30]
[381141249,1756072174983,5000.0,0.000279,2]
[381141250,1756072202701,318.47437848,0.00020763,2]
[381141251,1756072202747,318.47437848,0.0002249,2]
[381141252,1756072202802,318.47437848,0.00024216,2]
[381141253,1756072202863,238.855784,0.00025943,4]
[381141274,1756072232004,-199.0,0.000289,10]
[381141275,1756072232017,-199.0,0.000304,120]
[381141276,1756072232026,-290.74632319,0.00030494,2]
[381141277,1756072232035,-85.49021749,0.00030593,2]
[381141278,1756072232084,-933.50978251,0.00030593,2]
[381141279,1756072232093,-164.50743806,0.00030594,2]
[381141280,1756072232103,-400.0,0.00030594,2]
[381141281,1756072232113,-400.0,0.00030594,2]
[381141282,1756072232122,-231.0,0.00030594,2]
[381141283,1756072232356,-1528.44169045,0.00030595,2]
[381141284,1756072232366,-3433.40996078,0.00030595,2]
[381141285,1756072232375,-151.0,0.00030675,2]
[381141286,1756072232385,-735.07261176,0.00030675,2]
[381141287,1756072232395,-321.04,0.00030685,3]
[381141288,1756072232404,-160.52,0.00030685,3]
[381141289,1756072232413,-481.57,0.00030685,3]
[381141290,1756072232423,-1000.55433446,0.00030693,2]
[381141291,1756072232432,-574.05103303,0.00030694,2]
[381141292,1756072232441,-779.37074416,0.00030694,2]
[381141293,1756072232451,-779.37074416,0.00030694,2]
[381141294,1756072232460,-779.37074416,0.00030694,2]
[381141295,1756072232470,-779.37074416,0.00030694,2]
[381141296,1756072232479,-779.37074416,0.00030694,2]
[381141297,1756072232488,-499.86340419,0.00030694,2]
[381141525,1756072238034,-199.0,0.000288,10]
[381141527,1756072238044,-279.50733997,0.00030694,2]
[381141529,1756072238054,-343.15588939,0.00030694,2]
[381141532,1756072238074,-436.21485477,0.00030694,2]
[381141534,1756072238084,-779.37074416,0.00030694,2]
[381141536,1756072238096,-779.37074416,0.00030694,2]
[381141538,1756072238105,-779.37074416,0.00030694,2]
[381141540,1756072238115,-779.37074416,0.00030694,2]
[381141543,1756072238125,-779.37074416,0.00030694,2]
[381141545,1756072238134,-779.37074416,0.00030694,2]
[381141547,1756072238144,-779.37074416,0.00030694,2]
[381141548,1756072238153,-779.37074416,0.00030694,2]
[381141550,1756072238163,-1006.2690511,0.00030694,2]
[381141552,1756072238172,-1006.2690511,0.00030694,2]
[381141555,1756072238183,-1006.2690511,0.00030694,2]
[381141557,1756072238193,-1006.2690511,0.00030694,2]
[381141559,1756072238203,-1006.2690511,0.00030694,2]
[381141560,1756072238212,-1006.2690511,0.00030694,2]
[381141561,1756072238222,-1006.2690511,0.00030694,2]
[381141563,1756072238231,-1006.2690511,0.00030694,2]
[381141565,1756072238241,-1006.2690511,0.00030694,2]
[381141567,1756072238251,-1006.2690511,0.00030694,2]
[381141569,1756072238260,-1084.88382073,0.00030694,2]
[381141571,1756072238271,-1084.88382073,0.00030694,2]
[381141573,1756072238281,-1084.88382073,0.00030694,2]
[381141575,1756072238290,-1084.88382073,0.00030694,2]
[381141577,1756072238299,-2330.51234655,0.00030695,2]
[381141579,1756072238309,-24947.95587553,0.00030695,20]
[381141581,1756072238320,-65897.49016,0.00030695,20]
[381141583,1756072238332,-300.64449073,0.00030695,20]
[381141600,1756072240019,-199.0,0.000303,120]
[381141601,1756072240029,-5800.993325,0.00030695,20]
[381141603,1756072240041,-8767.4199462,0.00030695,20]
[381141604,1756072240052,-16839.8966,0.00030695,20]
[381141626,1756072246265,-113109.71021631,0.00030695,20]
[381141631,1756072247589,199.0,0.00026749,20]
[381141632,1756072265550,5000.0,0.000279,2]
[381141633,1756072280727,5000.0,0.000279,2]
[381141634,1756072295944,4793.76088202,0.000279,2]
[381141635,1756072368930,230.48824174,0.000199,2]
[381141636,1756072368982,230.48824159,0.00021627,2]
[381141637,1756072369141,230.48824159,0.00023353,2]
[381141638,1756072369701,230.48824159,0.00026806,6]
[381141639,1756072369782,1281.74265737,0.00026195,2]
[381141640,1756072442465,-25000.0,0.00030695,20]
[381141641,1756072443390,-25000.0,0.00030695,20]
[381141642,1756072444293,-25000.0,0.00030695,20]
[381141643,1756072445142,-25000.0,0.00030695,20]
[381141644,1756072445820,199.0,0.00026749,20]
[381141645,1756072446014,-25000.0,0.00030695,20]
[381141646,1756072446877,-25000.0,0.00030695,20]
[381141648,1756072539621,450.84534665,0.000199,2]
[381141649,1756072539920,450.84534639,0.00023353,2]
[381141650,1756072540120,450.84534639,0.00021627,2]
[381141652,1756072551314,5000.0,0.00026195,2]
[381141653,1756072605423,315.935295,0.00013699,2]
[381141654,1756072605626,315.935295,0.00020187,2]
[381141655,1756072605862,315.935295,0.00026676,2]
[381141656,1756072609337,360.91521,0.00025778,2]
[381141657,1756072609650,280.33911544,0.00026044,2]
[381141658,1756072706831,583.93969206,0.000199,2]
[381141659,1756072707132,583.93969191,0.00021627,2]
[381141660,1756072707255,583.93969191,0.00026806,6]
[381141661,1756072707541,583.93969191,0.0002508,2]
[381141662,1756072707850,583.93969191,0.00023353,2]
[381141663,1756072803157,500.0,0.00025205,2]
[381141664,1756072804087,500.0,0.00025205,2]
[381141665,1756072804514,500.0,0.00025205,2]
[381141666,1756072805356,500.0,0.00025205,2]
[381141667,1756072805412,500.0,0.00025205,2]
[381141668,1756072805726,500.0,0.00025205,2]
[381141669,1756072806211,500.0,0.00025205,2]
[381141670,1756072806704,500.0,0.00025205,2]
[381141671,1756072873206,676.06198507,0.000199,2]
[381141672,1756072873376,676.06198495,0.00026806,6]
[381141673,1756072873414,676.06198495,0.00021627,2]
[381141674,1756072873612,676.06198495,0.00023353,2]
[381141675,1756072874036,676.06198495,0.0002508,2]
[381141676,1756072876857,707.8,0.000279,2]
[381141677,1756073041134,732.21943828,0.000199,2]
[381141678,1756073041292,732.21943809,0.00023353,2]
[381141679,1756073041794,732.21943809,0.0002508,2]
[381141680,1756073042150,732.21943809,0.00021627,2]
[381141681,1756073153684,473.0,0.00027,2]
[381141682,1756073216666,797.0879111,0.000199,2]
[381141683,1756073217196,797.08791082,0.00026806,6]
[381141684,1756073217284,797.08791082,0.00021627,2]
[381141685,1756073217341,797.08791082,0.00023353,2]